Department family,Entity,Date,Expense type,Expense area,Supplier,Transaction number,Amount
Department of Health,Leicestershire Partnership NHS Trust,01/06/22,Payroll Deductions -Salary Sacrifice Cars Scheme,Balance Sheet Collection,TUSKER,61510,48621.32
Department of Health,Leicestershire Partnership NHS Trust,01/06/22,Healthcare Services / Recharges from Non-NHS Bodies,Adult Eating Disorder Collaborative,PRIORY GROUP,301MAY22LECAED,53996.54
Department of Health,Leicestershire Partnership NHS Trust,06/06/22,External Data Processing / Storage,Records & information Governance,L&R STORAGE,4009440,33323.51
Department of Health,Leicestershire Partnership NHS Trust,06/06/22,WIP Project Not in BS - Buildings excl Dwellings,Work in Progress,TILBURY DOUGLAS CONSTRUCTION LTD,22060006,249652.56
Department of Health,Leicestershire Partnership NHS Trust,06/06/22,WIP Project Not in BS - Buildings excl Dwellings,Work in Progress,TILBURY DOUGLAS CONSTRUCTION LTD,22060007,308608.13
Department of Health,Leicestershire Partnership NHS Trust,06/06/22,Computer Software,HR Employment Services,SOFTCAT PLC,INVUK438688,182436.00
Department of Health,Leicestershire Partnership NHS Trust,07/06/22,Computer License  Fees,Chief Executives Office,SOFTCAT PLC,INVUK438797,48206.22
Department of Health,Leicestershire Partnership NHS Trust,07/06/22,Gas,"Beaumont Leys Health Centre (P94, LPT)",TOTAL GAS & POWER LTD,267420906/22,1276.68
Department of Health,Leicestershire Partnership NHS Trust,07/06/22,Gas,"Bennion Centre (including Forest Grange Day Unit) (P8, LPT)",TOTAL GAS & POWER LTD,267420906/22,17058.19
Department of Health,Leicestershire Partnership NHS Trust,07/06/22,Gas,"Bradgate Unit (including Glenvale day Unit) (P7, LPT)",TOTAL GAS & POWER LTD,267420906/22,26284.98
Department of Health,Leicestershire Partnership NHS Trust,07/06/22,Gas,Bridge Park Plaza - First Floor (LPT),TOTAL GAS & POWER LTD,267420906/22,2722.27
Department of Health,Leicestershire Partnership NHS Trust,07/06/22,Gas,"Bridge Park Road - Units 2 and 3 (P148, LPT)",TOTAL GAS & POWER LTD,267420906/22,713.61
Department of Health,Leicestershire Partnership NHS Trust,07/06/22,Gas,"Coalville Community Hospital (P138, LPT)",TOTAL GAS & POWER LTD,267420906/22,17905.72
Department of Health,Leicestershire Partnership NHS Trust,07/06/22,Gas,"Coalville Health Centre (P121, LPT)",TOTAL GAS & POWER LTD,267420906/22,1202.93
Department of Health,Leicestershire Partnership NHS Trust,07/06/22,Gas,"Evington Centre (P6, LPT)",TOTAL GAS & POWER LTD,267420906/22,2220.68
Department of Health,Leicestershire Partnership NHS Trust,07/06/22,Gas,"Farm Lodge (P34, LPT)",TOTAL GAS & POWER LTD,267420906/22,250.59
Department of Health,Leicestershire Partnership NHS Trust,07/06/22,Gas,"Frith Cottages 3 & 4 (P36, LPT)",TOTAL GAS & POWER LTD,267420906/22,318.19
Department of Health,Leicestershire Partnership NHS Trust,07/06/22,Gas,HIS,TOTAL GAS & POWER LTD,267420906/22,458.40
Department of Health,Leicestershire Partnership NHS Trust,07/06/22,Gas,"Hawthorne Centre - Coalville (P14, LPT)",TOTAL GAS & POWER LTD,267420906/22,855.74
Department of Health,Leicestershire Partnership NHS Trust,07/06/22,Gas,"Hinckley and Bosworth Community Hospital (Sunnyside) (P133, LPT)",TOTAL GAS & POWER LTD,267420906/22,11391.32
Department of Health,Leicestershire Partnership NHS Trust,07/06/22,Gas,"Hynca Lodge (P33, LPT)",TOTAL GAS & POWER LTD,267420906/22,1267.03
Department of Health,Leicestershire Partnership NHS Trust,07/06/22,Gas,"LGH - Gwendolen House (P4, LPT)",TOTAL GAS & POWER LTD,267420906/22,3627.74
Department of Health,Leicestershire Partnership NHS Trust,07/06/22,Gas,"Loughborough Hospital (P136, LPT)",TOTAL GAS & POWER LTD,267420906/22,30785.47
Department of Health,Leicestershire Partnership NHS Trust,07/06/22,Gas,Mawson House (LPT),TOTAL GAS & POWER LTD,267420906/22,1072.19
Department of Health,Leicestershire Partnership NHS Trust,07/06/22,Gas,"Mett Centre (P49, LPT)",TOTAL GAS & POWER LTD,267420906/22,572.45
Department of Health,Leicestershire Partnership NHS Trust,07/06/22,Gas,"Narborough Health Centre (P117, LPT)",TOTAL GAS & POWER LTD,267420906/22,940.56
Department of Health,Leicestershire Partnership NHS Trust,07/06/22,Gas,"Neville Centre - LGH (was DSC) (P147, LPT)",TOTAL GAS & POWER LTD,267420906/22,1813.50
Department of Health,Leicestershire Partnership NHS Trust,07/06/22,Gas,"OSL House (P54, LPT)",TOTAL GAS & POWER LTD,267420906/22,1304.28
Department of Health,Leicestershire Partnership NHS Trust,07/06/22,Gas,"Orchard Resource Centre (P15, LPT)",TOTAL GAS & POWER LTD,267420906/22,1316.53
Department of Health,Leicestershire Partnership NHS Trust,07/06/22,Gas,"Rutland Memorial Hospital (P134, LPT)",TOTAL GAS & POWER LTD,267420906/22,26495.25
Department of Health,Leicestershire Partnership NHS Trust,07/06/22,Gas,"Shepshed Health Centre (P123, LPT)",TOTAL GAS & POWER LTD,267420906/22,1150.30
Department of Health,Leicestershire Partnership NHS Trust,07/06/22,Gas,"Springfield Road Health Centre (P92, LPT)",TOTAL GAS & POWER LTD,267420906/22,1209.73
Department of Health,Leicestershire Partnership NHS Trust,07/06/22,Gas,"Stewart House (P61, LPT)",TOTAL GAS & POWER LTD,267420906/22,7496.80
Department of Health,Leicestershire Partnership NHS Trust,07/06/22,Gas,"Swithland House - London Road 352 (P44, LPT)",TOTAL GAS & POWER LTD,267420906/22,1749.05
Department of Health,Leicestershire Partnership NHS Trust,07/06/22,Gas,"The Agnes Unit (AKA Assessment and Treatment Centre) (P85, LPT)",TOTAL GAS & POWER LTD,267420906/22,7445.33
Department of Health,Leicestershire Partnership NHS Trust,07/06/22,Gas,The Beacon,TOTAL GAS & POWER LTD,267420906/22,3056.36
Department of Health,Leicestershire Partnership NHS Trust,07/06/22,Gas,"The Cedars (P19, LPT)",TOTAL GAS & POWER LTD,267420906/22,535.06
Department of Health,Leicestershire Partnership NHS Trust,07/06/22,Gas,"The Grange 1 (P4, LPT)",TOTAL GAS & POWER LTD,267420906/22,526.52
Department of Health,Leicestershire Partnership NHS Trust,07/06/22,Gas,"The Grange 2 (P41, LPT)",TOTAL GAS & POWER LTD,267420906/22,3029.39
Department of Health,Leicestershire Partnership NHS Trust,07/06/22,Gas,"The Willows - Cordelia Close (P22, LPT)",TOTAL GAS & POWER LTD,267420906/22,5979.06
Department of Health,Leicestershire Partnership NHS Trust,07/06/22,Gas,"Valentine Centre (P3, LPT)",TOTAL GAS & POWER LTD,267420906/22,3021.13
Department of Health,Leicestershire Partnership NHS Trust,07/06/22,Gas,"Westcotes Group -Westcotes House (P78, LPT)",TOTAL GAS & POWER LTD,267420906/22,2213.80
Department of Health,Leicestershire Partnership NHS Trust,07/06/22,Gas,"Winstanley Drive Health Centre (P8, LPT)",TOTAL GAS & POWER LTD,267420906/22,1084.03
Department of Health,Leicestershire Partnership NHS Trust,08/06/22,Nurse - Band 6 -Agency,AMH - Central Access Point,HCL NURSING,HNSI0001040,2472.00
Department of Health,Leicestershire Partnership NHS Trust,08/06/22,Nurse - Band 6 -Agency,Adult City East CMHT - Merlyn Vaz,HCL NURSING,HNSI0001040,2277.78
Department of Health,Leicestershire Partnership NHS Trust,08/06/22,Nurse - Band 6 -Agency,Adult County West Leicestershire CMHT,HCL NURSING,HNSI0001040,2159.87
Department of Health,Leicestershire Partnership NHS Trust,08/06/22,NURSE - BAND 2 - AGENCY,Agnes Unit,HCL NURSING,HNSI0001040,22256.22
Department of Health,Leicestershire Partnership NHS Trust,08/06/22,NURSE - BAND 5 - AGENCY,Agnes Unit,HCL NURSING,HNSI0001040,15206.72
Department of Health,Leicestershire Partnership NHS Trust,08/06/22,NURSE - BAND 5 - AGENCY,Ashby Ward (Bradgate Unit),HCL NURSING,HNSI0001040,1097.63
Department of Health,Leicestershire Partnership NHS Trust,08/06/22,NURSE - BAND 2 - AGENCY,Aston Ward (Bradgate Unit),HCL NURSING,HNSI0001040,10021.29
Department of Health,Leicestershire Partnership NHS Trust,08/06/22,NURSE - BAND 5 - AGENCY,Aston Ward (Bradgate Unit),HCL NURSING,HNSI0001040,13898.54
Department of Health,Leicestershire Partnership NHS Trust,08/06/22,NURSE - BAND 2 - AGENCY,Beaumont Ward - Bradgate Unit,HCL NURSING,HNSI0001040,1717.95
Department of Health,Leicestershire Partnership NHS Trust,08/06/22,NURSE - BAND 5 - AGENCY,Beaumont Ward - Bradgate Unit,HCL NURSING,HNSI0001040,13425.75
Department of Health,Leicestershire Partnership NHS Trust,08/06/22,NURSE - BAND 2 - AGENCY,Belvoir Psychiatric Intensive Care Unit,HCL NURSING,HNSI0001040,6571.86
Department of Health,Leicestershire Partnership NHS Trust,08/06/22,NURSE - BAND 5 - AGENCY,Belvoir Psychiatric Intensive Care Unit,HCL NURSING,HNSI0001040,4150.28
Department of Health,Leicestershire Partnership NHS Trust,08/06/22,NURSE - BAND 2 - AGENCY,Bosworth Ward - Bradgate Unit,HCL NURSING,HNSI0001040,8535.21
Department of Health,Leicestershire Partnership NHS Trust,08/06/22,NURSE - BAND 5 - AGENCY,Bosworth Ward - Bradgate Unit,HCL NURSING,HNSI0001040,3249.97
Department of Health,Leicestershire Partnership NHS Trust,08/06/22,NURSE - BAND 2 - AGENCY,Cedar (Willows),HCL NURSING,HNSI0001040,3289.06
Department of Health,Leicestershire Partnership NHS Trust,08/06/22,NURSE - BAND 5 - AGENCY,Cedar (Willows),HCL NURSING,HNSI0001040,3381.23
Department of Health,Leicestershire Partnership NHS Trust,08/06/22,Nurse - Band 6 -Agency,City West CMHT MHSOP,HCL NURSING,HNSI0001040,1056.00
Department of Health,Leicestershire Partnership NHS Trust,08/06/22,NURSE - BAND 2 - AGENCY,Coleman Ward,HCL NURSING,HNSI0001040,12253.51
Department of Health,Leicestershire Partnership NHS Trust,08/06/22,NURSE - BAND 5 - AGENCY,Coleman Ward,HCL NURSING,HNSI0001040,1784.88
Department of Health,Leicestershire Partnership NHS Trust,08/06/22,NURSE - BAND 5 - AGENCY,Crisis Resolution,HCL NURSING,HNSI0001040,2670.40
Department of Health,Leicestershire Partnership NHS Trust,08/06/22,NURSE - BAND 2 - AGENCY,Griffin Ward (HPC),HCL NURSING,HNSI0001040,5800.10
Department of Health,Leicestershire Partnership NHS Trust,08/06/22,NURSE - BAND 5 - AGENCY,Griffin Ward (HPC),HCL NURSING,HNSI0001040,4755.95
Department of Health,Leicestershire Partnership NHS Trust,08/06/22,NURSE - BAND 2 - AGENCY,Heather Ward,HCL NURSING,HNSI0001040,1418.96
Department of Health,Leicestershire Partnership NHS Trust,08/06/22,NURSE - BAND 5 - AGENCY,Heather Ward,HCL NURSING,HNSI0001040,2722.79
Department of Health,Leicestershire Partnership NHS Trust,08/06/22,NURSE - BAND 2 - AGENCY,Kirby Ward,HCL NURSING,HNSI0001040,5333.27
Department of Health,Leicestershire Partnership NHS Trust,08/06/22,NURSE - BAND 5 - AGENCY,Kirby Ward,HCL NURSING,HNSI0001040,1617.91
Department of Health,Leicestershire Partnership NHS Trust,08/06/22,NURSE - BAND 2 - AGENCY,Maple Ward,HCL NURSING,HNSI0001040,4141.12
Department of Health,Leicestershire Partnership NHS Trust,08/06/22,NURSE - BAND 5 - AGENCY,Maple Ward,HCL NURSING,HNSI0001040,3197.51
Department of Health,Leicestershire Partnership NHS Trust,08/06/22,Nurse - Band 6 -Agency,Mental Health Liaison Team,HCL NURSING,HNSI0001040,2635.17
Department of Health,Leicestershire Partnership NHS Trust,08/06/22,NURSE - BAND 2 - AGENCY,Mill Lodge,HCL NURSING,HNSI0001040,3266.40
Department of Health,Leicestershire Partnership NHS Trust,08/06/22,NURSE - BAND 5 - AGENCY,Mill Lodge,HCL NURSING,HNSI0001040,6876.74
Department of Health,Leicestershire Partnership NHS Trust,08/06/22,NURSE - BAND 2 - AGENCY,Phoenix Ward (HPC),HCL NURSING,HNSI0001040,10549.04
Department of Health,Leicestershire Partnership NHS Trust,08/06/22,NURSE - BAND 5 - AGENCY,Phoenix Ward (HPC),HCL NURSING,HNSI0001040,1493.88
Department of Health,Leicestershire Partnership NHS Trust,08/06/22,NURSE - BAND 2 - AGENCY,Place Of Safety Assessment Unit,HCL NURSING,HNSI0001040,1086.66
Department of Health,Leicestershire Partnership NHS Trust,08/06/22,NURSE - BAND 5 - AGENCY,Place Of Safety Assessment Unit,HCL NURSING,HNSI0001040,4917.36
Department of Health,Leicestershire Partnership NHS Trust,08/06/22,NURSE - BAND 2 - AGENCY,Stewart House,HCL NURSING,HNSI0001040,2362.13
Department of Health,Leicestershire Partnership NHS Trust,08/06/22,NURSE - BAND 5 - AGENCY,Stewart House,HCL NURSING,HNSI0001040,9988.92
Department of Health,Leicestershire Partnership NHS Trust,08/06/22,NURSE - BAND 2 - AGENCY,Sycamore (Willows),HCL NURSING,HNSI0001040,2160.18
Department of Health,Leicestershire Partnership NHS Trust,08/06/22,NURSE - BAND 5 - AGENCY,Sycamore (Willows),HCL NURSING,HNSI0001040,6831.45
Department of Health,Leicestershire Partnership NHS Trust,08/06/22,NURSE - BAND 2 - AGENCY,Thornton Ward - Bradgate Unit,HCL NURSING,HNSI0001040,2115.67
Department of Health,Leicestershire Partnership NHS Trust,08/06/22,NURSE - BAND 5 - AGENCY,Thornton Ward - Bradgate Unit,HCL NURSING,HNSI0001040,520.04
Department of Health,Leicestershire Partnership NHS Trust,08/06/22,NURSE - BAND 2 - AGENCY,Watermead Ward (Bradgate Unit),HCL NURSING,HNSI0001040,2236.77
Department of Health,Leicestershire Partnership NHS Trust,08/06/22,NURSE - BAND 5 - AGENCY,Watermead Ward (Bradgate Unit),HCL NURSING,HNSI0001040,10805.70
Department of Health,Leicestershire Partnership NHS Trust,08/06/22,NURSE - BAND 2 - AGENCY,Welford Ward,HCL NURSING,HNSI0001040,3390.24
Department of Health,Leicestershire Partnership NHS Trust,08/06/22,NURSE - BAND 5 - AGENCY,Welford Ward,HCL NURSING,HNSI0001040,2372.04
Department of Health,Leicestershire Partnership NHS Trust,08/06/22,Nurse - Band 6 -Agency,CAMHS HUB / CAP,HCL SOCIAL CARE,HWSI0001191,8213.40
Department of Health,Leicestershire Partnership NHS Trust,08/06/22,Nurse - Band 6 -Agency,CAMHS Waiting List Monies,HCL SOCIAL CARE,HWSI0001191,27831.23
Department of Health,Leicestershire Partnership NHS Trust,08/06/22,Nurse - Band 6 -Agency,Crisis Response and Home Treatment,HCL SOCIAL CARE,HWSI0001191,1566.55
Department of Health,Leicestershire Partnership NHS Trust,08/06/22,NURSE - BAND 2 - AGENCY,CAMHS ED Team,HCL NURSING,HNSI0001042,1610.43
Department of Health,Leicestershire Partnership NHS Trust,08/06/22,NURSE - BAND 2 - AGENCY,CAMHS Inpatient Service,HCL NURSING,HNSI0001042,11864.81
Department of Health,Leicestershire Partnership NHS Trust,08/06/22,NURSE - BAND 5 - AGENCY,CAMHS Inpatient Service,HCL NURSING,HNSI0001042,7824.08
Department of Health,Leicestershire Partnership NHS Trust,08/06/22,Nurse - Band 6 -Agency,CAMHS Waiting List Monies,HCL NURSING,HNSI0001042,5162.53
Department of Health,Leicestershire Partnership NHS Trust,08/06/22,NURSE - BAND 2 - AGENCY,Langley Ward ED Inpatient Service,HCL NURSING,HNSI0001042,1788.77
Department of Health,Leicestershire Partnership NHS Trust,08/06/22,NURSE - BAND 5 - AGENCY,Langley Ward ED Inpatient Service,HCL NURSING,HNSI0001042,1923.65
Department of Health,Leicestershire Partnership NHS Trust,08/06/22,External Audit Fees,Finance Department,KPMG CONSULTING,5502443279,29100.00
Department of Health,Leicestershire Partnership NHS Trust,09/06/22,NURSE - BAND 2 - AGENCY,Beechwood Ward,HCL NURSING,HNSI0001041,4819.89
Department of Health,Leicestershire Partnership NHS Trust,09/06/22,NURSE - BAND 5 - AGENCY,Beechwood Ward,HCL NURSING,HNSI0001041,4198.46
Department of Health,Leicestershire Partnership NHS Trust,09/06/22,NURSE - BAND 5 - AGENCY,City Planned Care - East,HCL NURSING,HNSI0001041,16622.96
Department of Health,Leicestershire Partnership NHS Trust,09/06/22,NURSE - BAND 5 - AGENCY,City Planned Care - West,HCL NURSING,HNSI0001041,10651.04
Department of Health,Leicestershire Partnership NHS Trust,09/06/22,NURSE - BAND 2 - AGENCY,Clarendon Ward,HCL NURSING,HNSI0001041,4222.91
Department of Health,Leicestershire Partnership NHS Trust,09/06/22,NURSE - BAND 5 - AGENCY,Clarendon Ward,HCL NURSING,HNSI0001041,9339.19
Department of Health,Leicestershire Partnership NHS Trust,09/06/22,NURSE - BAND 2 - AGENCY,Coalville Snibston Ward,HCL NURSING,HNSI0001041,4658.20
Department of Health,Leicestershire Partnership NHS Trust,09/06/22,NURSE - BAND 5 - AGENCY,Coalville Snibston Ward,HCL NURSING,HNSI0001041,1706.50
Department of Health,Leicestershire Partnership NHS Trust,09/06/22,NURSE - BAND 2 - AGENCY,Coalville Ward 2,HCL NURSING,HNSI0001041,4020.14
Department of Health,Leicestershire Partnership NHS Trust,09/06/22,NURSE - BAND 5 - AGENCY,Coalville Ward 2,HCL NURSING,HNSI0001041,1570.78
Department of Health,Leicestershire Partnership NHS Trust,09/06/22,NURSE - BAND 2 - AGENCY,Dalgliesh Ward,HCL NURSING,HNSI0001041,2809.93
Department of Health,Leicestershire Partnership NHS Trust,09/06/22,NURSE - BAND 5 - AGENCY,Dalgliesh Ward,HCL NURSING,HNSI0001041,2100.63
Department of Health,Leicestershire Partnership NHS Trust,09/06/22,NURSE - BAND 5 - AGENCY,"East Planned Care - Oadby,Wigston & Harborough",HCL NURSING,HNSI0001041,1019.04
Department of Health,Leicestershire Partnership NHS Trust,09/06/22,NURSE - BAND 2 - AGENCY,H&B Comm Hosp East Ward,HCL NURSING,HNSI0001041,8329.26
Department of Health,Leicestershire Partnership NHS Trust,09/06/22,NURSE - BAND 5 - AGENCY,H&B Comm Hosp East Ward,HCL NURSING,HNSI0001041,8544.05
Department of Health,Leicestershire Partnership NHS Trust,09/06/22,NURSE - BAND 2 - AGENCY,H&B Comm Hosp North Ward,HCL NURSING,HNSI0001041,4759.86
Department of Health,Leicestershire Partnership NHS Trust,09/06/22,NURSE - BAND 5 - AGENCY,H&B Comm Hosp North Ward,HCL NURSING,HNSI0001041,2804.68
Department of Health,Leicestershire Partnership NHS Trust,09/06/22,NURSE - BAND 2 - AGENCY,Lough Swithland Ward,HCL NURSING,HNSI0001041,1192.98
Department of Health,Leicestershire Partnership NHS Trust,09/06/22,NURSE - BAND 5 - AGENCY,Lough Swithland Ward,HCL NURSING,HNSI0001041,2164.84
Department of Health,Leicestershire Partnership NHS Trust,09/06/22,NURSE - BAND 2 - AGENCY,Rutland Ward Nursing,HCL NURSING,HNSI0001041,5197.96
Department of Health,Leicestershire Partnership NHS Trust,09/06/22,NURSE - BAND 5 - AGENCY,Rutland Ward Nursing,HCL NURSING,HNSI0001041,537.79
Department of Health,Leicestershire Partnership NHS Trust,09/06/22,NURSE - BAND 2 - AGENCY,St Lukes Stroke Ward,HCL NURSING,HNSI0001041,2054.91
Department of Health,Leicestershire Partnership NHS Trust,09/06/22,NURSE - BAND 5 - AGENCY,St Lukes Stroke Ward,HCL NURSING,HNSI0001041,863.55
Department of Health,Leicestershire Partnership NHS Trust,09/06/22,NURSE - BAND 2 - AGENCY,St Lukes Ward 3,HCL NURSING,HNSI0001041,4165.95
Department of Health,Leicestershire Partnership NHS Trust,09/06/22,NURSE - BAND 5 - AGENCY,St Lukes Ward 3,HCL NURSING,HNSI0001041,2114.28
Department of Health,Leicestershire Partnership NHS Trust,09/06/22,NURSE - BAND 2 - AGENCY,Wakerley Ward,HCL NURSING,HNSI0001041,2954.19
Department of Health,Leicestershire Partnership NHS Trust,09/06/22,NURSE - BAND 5 - AGENCY,Wakerley Ward,HCL NURSING,HNSI0001041,3011.76
Department of Health,Leicestershire Partnership NHS Trust,09/06/22,Medical & Surgical Equipment,Ashby Ward (Bradgate Unit),OXEHEALTH,OX-214,41785.72
Department of Health,Leicestershire Partnership NHS Trust,09/06/22,Medical & Surgical Equipment,Aston Ward (Bradgate Unit),OXEHEALTH,OX-214,41785.72
Department of Health,Leicestershire Partnership NHS Trust,09/06/22,Medical & Surgical Equipment,CAMHS Inpatient Service,OXEHEALTH,OX-214,41785.72
Department of Health,Leicestershire Partnership NHS Trust,09/06/22,Medical & Surgical Equipment,Coleman Ward,OXEHEALTH,OX-214,41785.72
Department of Health,Leicestershire Partnership NHS Trust,09/06/22,Medical & Surgical Equipment,Gwendolen Ward,OXEHEALTH,OX-214,41785.68
Department of Health,Leicestershire Partnership NHS Trust,09/06/22,Medical & Surgical Equipment,Mill Lodge,OXEHEALTH,OX-214,41785.72
Department of Health,Leicestershire Partnership NHS Trust,09/06/22,Medical & Surgical Equipment,Watermead Ward (Bradgate Unit),OXEHEALTH,OX-214,41785.72
Department of Health,Leicestershire Partnership NHS Trust,09/06/22,Payroll Deductions -NEST EES Pensions,Balance Sheet Collection,NEST,P02DEDS-313-22/23,16286.59
Department of Health,Leicestershire Partnership NHS Trust,09/06/22,Payroll Deductions -NEST ERS Pensions,Balance Sheet Collection,NEST,P02DEDS-313-22/23,12214.95
Department of Health,Leicestershire Partnership NHS Trust,10/06/22,HR / Payroll Services,HR Employment Services,LINCOLNSHIRE PART NHSFT(RP7),L0000328,29360.83
Department of Health,Leicestershire Partnership NHS Trust,13/06/22,Insurance Costs,Chief Executives Office,NHS LITIGATION AUTHORITY,SICX409014,192613.10
Department of Health,Leicestershire Partnership NHS Trust,13/06/22,Nurse - Band 6 -Agency,AMH - Central Access Point,HCL NURSING,HNSI0001050,2436.08
Department of Health,Leicestershire Partnership NHS Trust,13/06/22,NURSE - BAND 2 - AGENCY,Agnes Unit,HCL NURSING,HNSI0001050,24136.63
Department of Health,Leicestershire Partnership NHS Trust,13/06/22,NURSE - BAND 5 - AGENCY,Agnes Unit,HCL NURSING,HNSI0001050,16453.91
Department of Health,Leicestershire Partnership NHS Trust,13/06/22,NURSE - BAND 2 - AGENCY,Ashby Ward (Bradgate Unit),HCL NURSING,HNSI0001050,4382.47
Department of Health,Leicestershire Partnership NHS Trust,13/06/22,NURSE - BAND 5 - AGENCY,Ashby Ward (Bradgate Unit),HCL NURSING,HNSI0001050,2262.60
Department of Health,Leicestershire Partnership NHS Trust,13/06/22,NURSE - BAND 2 - AGENCY,Aston Ward (Bradgate Unit),HCL NURSING,HNSI0001050,12411.75
Department of Health,Leicestershire Partnership NHS Trust,13/06/22,NURSE - BAND 5 - AGENCY,Aston Ward (Bradgate Unit),HCL NURSING,HNSI0001050,10500.18
Department of Health,Leicestershire Partnership NHS Trust,13/06/22,NURSE - BAND 2 - AGENCY,Beaumont Ward - Bradgate Unit,HCL NURSING,HNSI0001050,2903.07
Department of Health,Leicestershire Partnership NHS Trust,13/06/22,NURSE - BAND 5 - AGENCY,Beaumont Ward - Bradgate Unit,HCL NURSING,HNSI0001050,6457.53
Department of Health,Leicestershire Partnership NHS Trust,13/06/22,NURSE - BAND 2 - AGENCY,Belvoir Psychiatric Intensive Care Unit,HCL NURSING,HNSI0001050,4210.47
Department of Health,Leicestershire Partnership NHS Trust,13/06/22,NURSE - BAND 5 - AGENCY,Belvoir Psychiatric Intensive Care Unit,HCL NURSING,HNSI0001050,5540.85
Department of Health,Leicestershire Partnership NHS Trust,13/06/22,NURSE - BAND 2 - AGENCY,Bosworth Ward - Bradgate Unit,HCL NURSING,HNSI0001050,6008.62
Department of Health,Leicestershire Partnership NHS Trust,13/06/22,NURSE - BAND 5 - AGENCY,Bosworth Ward - Bradgate Unit,HCL NURSING,HNSI0001050,4442.91
Department of Health,Leicestershire Partnership NHS Trust,13/06/22,NURSE - BAND 2 - AGENCY,Cedar (Willows),HCL NURSING,HNSI0001050,3148.80
Department of Health,Leicestershire Partnership NHS Trust,13/06/22,NURSE - BAND 5 - AGENCY,Cedar (Willows),HCL NURSING,HNSI0001050,1104.82
Department of Health,Leicestershire Partnership NHS Trust,13/06/22,NURSE - BAND 2 - AGENCY,Coleman Ward,HCL NURSING,HNSI0001050,9079.84
Department of Health,Leicestershire Partnership NHS Trust,13/06/22,NURSE - BAND 5 - AGENCY,Coleman Ward,HCL NURSING,HNSI0001050,7125.84
Department of Health,Leicestershire Partnership NHS Trust,13/06/22,NURSE - BAND 5 - AGENCY,Crisis Resolution,HCL NURSING,HNSI0001050,2939.69
Department of Health,Leicestershire Partnership NHS Trust,13/06/22,NURSE - BAND 2 - AGENCY,Griffin Ward (HPC),HCL NURSING,HNSI0001050,9062.15
Department of Health,Leicestershire Partnership NHS Trust,13/06/22,NURSE - BAND 5 - AGENCY,Griffin Ward (HPC),HCL NURSING,HNSI0001050,4406.49
Department of Health,Leicestershire Partnership NHS Trust,13/06/22,NURSE - BAND 2 - AGENCY,Heather Ward,HCL NURSING,HNSI0001050,1444.68
Department of Health,Leicestershire Partnership NHS Trust,13/06/22,NURSE - BAND 5 - AGENCY,Heather Ward,HCL NURSING,HNSI0001050,4313.68
Department of Health,Leicestershire Partnership NHS Trust,13/06/22,NURSE - BAND 2 - AGENCY,Kirby Ward,HCL NURSING,HNSI0001050,4720.21
Department of Health,Leicestershire Partnership NHS Trust,13/06/22,NURSE - BAND 5 - AGENCY,Kirby Ward,HCL NURSING,HNSI0001050,272.76
Department of Health,Leicestershire Partnership NHS Trust,13/06/22,NURSE - BAND 2 - AGENCY,Maple Ward,HCL NURSING,HNSI0001050,6292.03
Department of Health,Leicestershire Partnership NHS Trust,13/06/22,NURSE - BAND 5 - AGENCY,Maple Ward,HCL NURSING,HNSI0001050,3525.98
Department of Health,Leicestershire Partnership NHS Trust,13/06/22,Nurse - Band 6 -Agency,Mental Health Liaison Team,HCL NURSING,HNSI0001050,870.23
Department of Health,Leicestershire Partnership NHS Trust,13/06/22,NURSE - BAND 2 - AGENCY,Mill Lodge,HCL NURSING,HNSI0001050,5750.15
Department of Health,Leicestershire Partnership NHS Trust,13/06/22,NURSE - BAND 5 - AGENCY,Mill Lodge,HCL NURSING,HNSI0001050,12986.48
Department of Health,Leicestershire Partnership NHS Trust,13/06/22,NURSE - BAND 2 - AGENCY,Phoenix Ward (HPC),HCL NURSING,HNSI0001050,7749.92
Department of Health,Leicestershire Partnership NHS Trust,13/06/22,NURSE - BAND 5 - AGENCY,Phoenix Ward (HPC),HCL NURSING,HNSI0001050,3757.03
Department of Health,Leicestershire Partnership NHS Trust,13/06/22,NURSE - BAND 2 - AGENCY,Place Of Safety Assessment Unit,HCL NURSING,HNSI0001050,798.30
Department of Health,Leicestershire Partnership NHS Trust,13/06/22,NURSE - BAND 5 - AGENCY,Place Of Safety Assessment Unit,HCL NURSING,HNSI0001050,2994.86
Department of Health,Leicestershire Partnership NHS Trust,13/06/22,NURSE - BAND 2 - AGENCY,Stewart House,HCL NURSING,HNSI0001050,2996.68
Department of Health,Leicestershire Partnership NHS Trust,13/06/22,NURSE - BAND 5 - AGENCY,Stewart House,HCL NURSING,HNSI0001050,2727.80
Department of Health,Leicestershire Partnership NHS Trust,13/06/22,NURSE - BAND 2 - AGENCY,Sycamore (Willows),HCL NURSING,HNSI0001050,7205.92
Department of Health,Leicestershire Partnership NHS Trust,13/06/22,NURSE - BAND 5 - AGENCY,Sycamore (Willows),HCL NURSING,HNSI0001050,6485.41
Department of Health,Leicestershire Partnership NHS Trust,13/06/22,NURSE - BAND 2 - AGENCY,Thornton Ward - Bradgate Unit,HCL NURSING,HNSI0001050,999.45
Department of Health,Leicestershire Partnership NHS Trust,13/06/22,NURSE - BAND 5 - AGENCY,Thornton Ward - Bradgate Unit,HCL NURSING,HNSI0001050,3336.93
Department of Health,Leicestershire Partnership NHS Trust,13/06/22,NURSE - BAND 2 - AGENCY,Watermead Ward (Bradgate Unit),HCL NURSING,HNSI0001050,4984.06
Department of Health,Leicestershire Partnership NHS Trust,13/06/22,NURSE - BAND 5 - AGENCY,Watermead Ward (Bradgate Unit),HCL NURSING,HNSI0001050,14837.64
Department of Health,Leicestershire Partnership NHS Trust,13/06/22,NURSE - BAND 2 - AGENCY,Welford Ward,HCL NURSING,HNSI0001050,1735.94
Department of Health,Leicestershire Partnership NHS Trust,13/06/22,NURSE - BAND 5 - AGENCY,Welford Ward,HCL NURSING,HNSI0001050,2401.36
Department of Health,Leicestershire Partnership NHS Trust,13/06/22,Crs_NHS_LT1y -Resus Inventory Supplied.,Balance Sheet Collection,SUPPLY CHAIN CO LTD,1123048998,46926.22
Department of Health,Leicestershire Partnership NHS Trust,13/06/22,Nurse - Band 6 -Agency,AMH - Central Access Point,HCL NURSING,HNSI0001047,1679.59
Department of Health,Leicestershire Partnership NHS Trust,13/06/22,Nurse - Band 6 -Agency,Adult City East CMHT - Merlyn Vaz,HCL NURSING,HNSI0001047,2663.84
Department of Health,Leicestershire Partnership NHS Trust,13/06/22,Nurse - Band 6 -Agency,Adult County West Leicestershire CMHT,HCL NURSING,HNSI0001047,1079.94
Department of Health,Leicestershire Partnership NHS Trust,13/06/22,NURSE - BAND 2 - AGENCY,Agnes Unit,HCL NURSING,HNSI0001047,19325.06
Department of Health,Leicestershire Partnership NHS Trust,13/06/22,NURSE - BAND 5 - AGENCY,Agnes Unit,HCL NURSING,HNSI0001047,15740.54
Department of Health,Leicestershire Partnership NHS Trust,13/06/22,NURSE - BAND 2 - AGENCY,Aston Ward (Bradgate Unit),HCL NURSING,HNSI0001047,12494.98
Department of Health,Leicestershire Partnership NHS Trust,13/06/22,NURSE - BAND 5 - AGENCY,Aston Ward (Bradgate Unit),HCL NURSING,HNSI0001047,14309.25
Department of Health,Leicestershire Partnership NHS Trust,13/06/22,NURSE - BAND 2 - AGENCY,Beaumont Ward - Bradgate Unit,HCL NURSING,HNSI0001047,3355.25
Department of Health,Leicestershire Partnership NHS Trust,13/06/22,NURSE - BAND 5 - AGENCY,Beaumont Ward - Bradgate Unit,HCL NURSING,HNSI0001047,9779.25
Department of Health,Leicestershire Partnership NHS Trust,13/06/22,NURSE - BAND 2 - AGENCY,Belvoir Psychiatric Intensive Care Unit,HCL NURSING,HNSI0001047,3429.15
Department of Health,Leicestershire Partnership NHS Trust,13/06/22,NURSE - BAND 5 - AGENCY,Belvoir Psychiatric Intensive Care Unit,HCL NURSING,HNSI0001047,4403.82
Department of Health,Leicestershire Partnership NHS Trust,13/06/22,NURSE - BAND 2 - AGENCY,Bosworth Ward - Bradgate Unit,HCL NURSING,HNSI0001047,6503.10
Department of Health,Leicestershire Partnership NHS Trust,13/06/22,NURSE - BAND 5 - AGENCY,Bosworth Ward - Bradgate Unit,HCL NURSING,HNSI0001047,4907.28
Department of Health,Leicestershire Partnership NHS Trust,13/06/22,NURSE - BAND 2 - AGENCY,Cedar (Willows),HCL NURSING,HNSI0001047,3143.04
Department of Health,Leicestershire Partnership NHS Trust,13/06/22,NURSE - BAND 5 - AGENCY,Cedar (Willows),HCL NURSING,HNSI0001047,2325.90
Department of Health,Leicestershire Partnership NHS Trust,13/06/22,Nurse - Band 6 -Agency,City West CMHT MHSOP,HCL NURSING,HNSI0001047,2112.00
Department of Health,Leicestershire Partnership NHS Trust,13/06/22,NURSE - BAND 2 - AGENCY,Coleman Ward,HCL NURSING,HNSI0001047,12257.80
Department of Health,Leicestershire Partnership NHS Trust,13/06/22,NURSE - BAND 5 - AGENCY,Coleman Ward,HCL NURSING,HNSI0001047,2173.25
Department of Health,Leicestershire Partnership NHS Trust,13/06/22,NURSE - BAND 5 - AGENCY,Crisis Resolution,HCL NURSING,HNSI0001047,3073.16
Department of Health,Leicestershire Partnership NHS Trust,13/06/22,Nurse - Band 6 -Agency,Crisis Resolution,HCL NURSING,HNSI0001047,392.25
Department of Health,Leicestershire Partnership NHS Trust,13/06/22,NURSE - BAND 2 - AGENCY,Griffin Ward (HPC),HCL NURSING,HNSI0001047,9295.70
Department of Health,Leicestershire Partnership NHS Trust,13/06/22,NURSE - BAND 5 - AGENCY,Griffin Ward (HPC),HCL NURSING,HNSI0001047,984.49
Department of Health,Leicestershire Partnership NHS Trust,13/06/22,NURSE - BAND 2 - AGENCY,Heather Ward,HCL NURSING,HNSI0001047,1014.98
Department of Health,Leicestershire Partnership NHS Trust,13/06/22,NURSE - BAND 5 - AGENCY,Heather Ward,HCL NURSING,HNSI0001047,4347.35
Department of Health,Leicestershire Partnership NHS Trust,13/06/22,NURSE - BAND 2 - AGENCY,Kirby Ward,HCL NURSING,HNSI0001047,5553.40
Department of Health,Leicestershire Partnership NHS Trust,13/06/22,NURSE - BAND 5 - AGENCY,Kirby Ward,HCL NURSING,HNSI0001047,1516.87
Department of Health,Leicestershire Partnership NHS Trust,13/06/22,NURSE - BAND 2 - AGENCY,Maple Ward,HCL NURSING,HNSI0001047,3348.85
Department of Health,Leicestershire Partnership NHS Trust,13/06/22,NURSE - BAND 5 - AGENCY,Maple Ward,HCL NURSING,HNSI0001047,1110.96
Department of Health,Leicestershire Partnership NHS Trust,13/06/22,Nurse - Band 6 -Agency,Mental Health Liaison Team,HCL NURSING,HNSI0001047,845.07
Department of Health,Leicestershire Partnership NHS Trust,13/06/22,NURSE - BAND 2 - AGENCY,Mill Lodge,HCL NURSING,HNSI0001047,2128.05
Department of Health,Leicestershire Partnership NHS Trust,13/06/22,NURSE - BAND 5 - AGENCY,Mill Lodge,HCL NURSING,HNSI0001047,6989.40
Department of Health,Leicestershire Partnership NHS Trust,13/06/22,NURSE - BAND 2 - AGENCY,Phoenix Ward (HPC),HCL NURSING,HNSI0001047,8323.80
Department of Health,Leicestershire Partnership NHS Trust,13/06/22,NURSE - BAND 5 - AGENCY,Phoenix Ward (HPC),HCL NURSING,HNSI0001047,3927.31
Department of Health,Leicestershire Partnership NHS Trust,13/06/22,NURSE - BAND 2 - AGENCY,Place Of Safety Assessment Unit,HCL NURSING,HNSI0001047,463.62
Department of Health,Leicestershire Partnership NHS Trust,13/06/22,NURSE - BAND 5 - AGENCY,Place Of Safety Assessment Unit,HCL NURSING,HNSI0001047,5015.60
Department of Health,Leicestershire Partnership NHS Trust,13/06/22,NURSE - BAND 2 - AGENCY,Stewart House,HCL NURSING,HNSI0001047,2766.59
Department of Health,Leicestershire Partnership NHS Trust,13/06/22,NURSE - BAND 5 - AGENCY,Stewart House,HCL NURSING,HNSI0001047,6988.97
Department of Health,Leicestershire Partnership NHS Trust,13/06/22,NURSE - BAND 2 - AGENCY,Sycamore (Willows),HCL NURSING,HNSI0001047,5947.00
Department of Health,Leicestershire Partnership NHS Trust,13/06/22,NURSE - BAND 5 - AGENCY,Sycamore (Willows),HCL NURSING,HNSI0001047,7192.86
Department of Health,Leicestershire Partnership NHS Trust,13/06/22,NURSE - BAND 2 - AGENCY,Thornton Ward - Bradgate Unit,HCL NURSING,HNSI0001047,1685.38
Department of Health,Leicestershire Partnership NHS Trust,13/06/22,NURSE - BAND 5 - AGENCY,Thornton Ward - Bradgate Unit,HCL NURSING,HNSI0001047,1040.08
Department of Health,Leicestershire Partnership NHS Trust,13/06/22,NURSE - BAND 2 - AGENCY,Watermead Ward (Bradgate Unit),HCL NURSING,HNSI0001047,6109.10
Department of Health,Leicestershire Partnership NHS Trust,13/06/22,NURSE - BAND 5 - AGENCY,Watermead Ward (Bradgate Unit),HCL NURSING,HNSI0001047,6815.26
Department of Health,Leicestershire Partnership NHS Trust,13/06/22,NURSE - BAND 2 - AGENCY,Welford Ward,HCL NURSING,HNSI0001047,1052.64
Department of Health,Leicestershire Partnership NHS Trust,13/06/22,NURSE - BAND 5 - AGENCY,Welford Ward,HCL NURSING,HNSI0001047,3865.67
Department of Health,Leicestershire Partnership NHS Trust,13/06/22,Nurse - Band 6 -Agency,CAMHS HUB / CAP,HCL SOCIAL CARE,HWSI0001203,8759.43
Department of Health,Leicestershire Partnership NHS Trust,13/06/22,Nurse - Band 6 -Agency,CAMHS Waiting List Monies,HCL SOCIAL CARE,HWSI0001203,15241.26
Department of Health,Leicestershire Partnership NHS Trust,13/06/22,NURSE - BAND 2 - AGENCY,CAMHS Inpatient Service,HCL NURSING,HNSI0001052,9475.04
Department of Health,Leicestershire Partnership NHS Trust,13/06/22,NURSE - BAND 5 - AGENCY,CAMHS Inpatient Service,HCL NURSING,HNSI0001052,5306.54
Department of Health,Leicestershire Partnership NHS Trust,13/06/22,Nurse - Band 6 -Agency,CAMHS Waiting List Monies,HCL NURSING,HNSI0001052,4464.21
Department of Health,Leicestershire Partnership NHS Trust,13/06/22,NURSE - BAND 2 - AGENCY,Langley Ward ED Inpatient Service,HCL NURSING,HNSI0001052,5516.50
Department of Health,Leicestershire Partnership NHS Trust,13/06/22,NURSE - BAND 5 - AGENCY,Langley Ward ED Inpatient Service,HCL NURSING,HNSI0001052,5575.88
Department of Health,Leicestershire Partnership NHS Trust,13/06/22,Nurse - Band 6 -Agency,CAMHS HUB / CAP,HCL SOCIAL CARE,HWSI0001199,8419.46
Department of Health,Leicestershire Partnership NHS Trust,13/06/22,Nurse - Band 6 -Agency,CAMHS Waiting List Monies,HCL SOCIAL CARE,HWSI0001199,23076.17
Department of Health,Leicestershire Partnership NHS Trust,13/06/22,Nurse - Band 6 -Agency,Crisis Response and Home Treatment,HCL SOCIAL CARE,HWSI0001199,1974.30
Department of Health,Leicestershire Partnership NHS Trust,13/06/22,NURSE - BAND 2 - AGENCY,CAMHS Inpatient Service,HCL NURSING,HNSI0001049,10165.45
Department of Health,Leicestershire Partnership NHS Trust,13/06/22,NURSE - BAND 5 - AGENCY,CAMHS Inpatient Service,HCL NURSING,HNSI0001049,7838.27
Department of Health,Leicestershire Partnership NHS Trust,13/06/22,Nurse - Band 6 -Agency,CAMHS Waiting List Monies,HCL NURSING,HNSI0001049,10923.75
Department of Health,Leicestershire Partnership NHS Trust,13/06/22,NURSE - BAND 2 - AGENCY,Langley Ward ED Inpatient Service,HCL NURSING,HNSI0001049,2457.74
Department of Health,Leicestershire Partnership NHS Trust,13/06/22,NURSE - BAND 5 - AGENCY,Langley Ward ED Inpatient Service,HCL NURSING,HNSI0001049,3170.19
Department of Health,Leicestershire Partnership NHS Trust,14/06/22,Services / Recharges from NHS Trusts,Inter Unit I & E Distribution,UHL NHS TRUST (RWE),L0260922,42222.05
Department of Health,Leicestershire Partnership NHS Trust,14/06/22,Network Costs - WAN Maint,HIS Infrastructure,VIRGIN MEDIA BUSINESS,262421-195,35934.66
Department of Health,Leicestershire Partnership NHS Trust,14/06/22,Computer Hardware,HIS External Recharge,DELL COMPUTERS,7402822885,25200.00
Department of Health,Leicestershire Partnership NHS Trust,15/06/22,Medical Equipment Repairs / Maintenance,Community Health Services Management,SPIRIT DIGITAL LTD,SIN220605SDI00026,43740.00
Department of Health,Leicestershire Partnership NHS Trust,16/06/22,NURSE - BAND 2 - AGENCY,Beechwood Ward,HCL NURSING,HNSI0001051,5758.97
Department of Health,Leicestershire Partnership NHS Trust,16/06/22,NURSE - BAND 5 - AGENCY,Beechwood Ward,HCL NURSING,HNSI0001051,4115.55
Department of Health,Leicestershire Partnership NHS Trust,16/06/22,NURSE - BAND 3 - AGENCY,CHS Phlebotomy Service,HCL NURSING,HNSI0001051,838.14
Department of Health,Leicestershire Partnership NHS Trust,16/06/22,NURSE - BAND 5 - AGENCY,City Planned Care - East,HCL NURSING,HNSI0001051,11476.95
Department of Health,Leicestershire Partnership NHS Trust,16/06/22,NURSE - BAND 5 - AGENCY,City Planned Care - West,HCL NURSING,HNSI0001051,6839.06
Department of Health,Leicestershire Partnership NHS Trust,16/06/22,NURSE - BAND 2 - AGENCY,Clarendon Ward,HCL NURSING,HNSI0001051,4530.83
Department of Health,Leicestershire Partnership NHS Trust,16/06/22,NURSE - BAND 5 - AGENCY,Clarendon Ward,HCL NURSING,HNSI0001051,8215.60
Department of Health,Leicestershire Partnership NHS Trust,16/06/22,NURSE - BAND 2 - AGENCY,Coalville Snibston Ward,HCL NURSING,HNSI0001051,5381.07
Department of Health,Leicestershire Partnership NHS Trust,16/06/22,NURSE - BAND 5 - AGENCY,Coalville Snibston Ward,HCL NURSING,HNSI0001051,1315.95
Department of Health,Leicestershire Partnership NHS Trust,16/06/22,NURSE - BAND 2 - AGENCY,Coalville Ward 2,HCL NURSING,HNSI0001051,5397.31
Department of Health,Leicestershire Partnership NHS Trust,16/06/22,NURSE - BAND 5 - AGENCY,Coalville Ward 2,HCL NURSING,HNSI0001051,599.61
Department of Health,Leicestershire Partnership NHS Trust,16/06/22,NURSE - BAND 2 - AGENCY,Dalgliesh Ward,HCL NURSING,HNSI0001051,4444.48
Department of Health,Leicestershire Partnership NHS Trust,16/06/22,NURSE - BAND 5 - AGENCY,Dalgliesh Ward,HCL NURSING,HNSI0001051,1970.74
Department of Health,Leicestershire Partnership NHS Trust,16/06/22,NURSE - BAND 5 - AGENCY,"East Planned Care - Oadby,Wigston & Harborough",HCL NURSING,HNSI0001051,1491.57
Department of Health,Leicestershire Partnership NHS Trust,16/06/22,NURSE - BAND 2 - AGENCY,H&B Comm Hosp East Ward,HCL NURSING,HNSI0001051,6610.25
Department of Health,Leicestershire Partnership NHS Trust,16/06/22,NURSE - BAND 5 - AGENCY,H&B Comm Hosp East Ward,HCL NURSING,HNSI0001051,10198.06
Department of Health,Leicestershire Partnership NHS Trust,16/06/22,NURSE - BAND 2 - AGENCY,H&B Comm Hosp North Ward,HCL NURSING,HNSI0001051,4013.70
Department of Health,Leicestershire Partnership NHS Trust,16/06/22,NURSE - BAND 5 - AGENCY,H&B Comm Hosp North Ward,HCL NURSING,HNSI0001051,4082.73
Department of Health,Leicestershire Partnership NHS Trust,16/06/22,NURSE - BAND 2 - AGENCY,Lough Swithland Ward,HCL NURSING,HNSI0001051,822.87
Department of Health,Leicestershire Partnership NHS Trust,16/06/22,NURSE - BAND 5 - AGENCY,Lough Swithland Ward,HCL NURSING,HNSI0001051,2314.60
Department of Health,Leicestershire Partnership NHS Trust,16/06/22,NURSE - BAND 2 - AGENCY,Rutland Ward Nursing,HCL NURSING,HNSI0001051,6124.31
Department of Health,Leicestershire Partnership NHS Trust,16/06/22,NURSE - BAND 5 - AGENCY,Rutland Ward Nursing,HCL NURSING,HNSI0001051,3971.25
Department of Health,Leicestershire Partnership NHS Trust,16/06/22,NURSE - BAND 2 - AGENCY,St Lukes Stroke Ward,HCL NURSING,HNSI0001051,6171.60
Department of Health,Leicestershire Partnership NHS Trust,16/06/22,NURSE - BAND 2 - AGENCY,St Lukes Ward 3,HCL NURSING,HNSI0001051,3941.33
Department of Health,Leicestershire Partnership NHS Trust,16/06/22,NURSE - BAND 5 - AGENCY,St Lukes Ward 3,HCL NURSING,HNSI0001051,823.87
Department of Health,Leicestershire Partnership NHS Trust,16/06/22,NURSE - BAND 2 - AGENCY,Wakerley Ward,HCL NURSING,HNSI0001051,10366.17
Department of Health,Leicestershire Partnership NHS Trust,16/06/22,NURSE - BAND 5 - AGENCY,Wakerley Ward,HCL NURSING,HNSI0001051,3961.86
Department of Health,Leicestershire Partnership NHS Trust,16/06/22,NURSE - BAND 2 - AGENCY,Beechwood Ward,HCL NURSING,HNSI0001048,5826.48
Department of Health,Leicestershire Partnership NHS Trust,16/06/22,NURSE - BAND 5 - AGENCY,Beechwood Ward,HCL NURSING,HNSI0001048,5607.16
Department of Health,Leicestershire Partnership NHS Trust,16/06/22,NURSE - BAND 3 - AGENCY,CHS Phlebotomy Service,HCL NURSING,HNSI0001048,634.92
Department of Health,Leicestershire Partnership NHS Trust,16/06/22,NURSE - BAND 5 - AGENCY,City Planned Care - East,HCL NURSING,HNSI0001048,15310.75
Department of Health,Leicestershire Partnership NHS Trust,16/06/22,NURSE - BAND 5 - AGENCY,City Planned Care - West,HCL NURSING,HNSI0001048,14689.98
Department of Health,Leicestershire Partnership NHS Trust,16/06/22,NURSE - BAND 2 - AGENCY,Clarendon Ward,HCL NURSING,HNSI0001048,4716.19
Department of Health,Leicestershire Partnership NHS Trust,16/06/22,NURSE - BAND 5 - AGENCY,Clarendon Ward,HCL NURSING,HNSI0001048,6145.46
Department of Health,Leicestershire Partnership NHS Trust,16/06/22,NURSE - BAND 2 - AGENCY,Coalville Snibston Ward,HCL NURSING,HNSI0001048,3818.53
Department of Health,Leicestershire Partnership NHS Trust,16/06/22,NURSE - BAND 2 - AGENCY,Coalville Ward 2,HCL NURSING,HNSI0001048,1681.64
Department of Health,Leicestershire Partnership NHS Trust,16/06/22,NURSE - BAND 5 - AGENCY,Coalville Ward 2,HCL NURSING,HNSI0001048,967.28
Department of Health,Leicestershire Partnership NHS Trust,16/06/22,NURSE - BAND 5 - AGENCY,Dalgliesh Ward,HCL NURSING,HNSI0001048,2145.48
Department of Health,Leicestershire Partnership NHS Trust,16/06/22,NURSE - BAND 5 - AGENCY,"East Planned Care - Oadby,Wigston & Harborough",HCL NURSING,HNSI0001048,1022.18
Department of Health,Leicestershire Partnership NHS Trust,16/06/22,NURSE - BAND 2 - AGENCY,H&B Comm Hosp East Ward,HCL NURSING,HNSI0001048,7258.37
Department of Health,Leicestershire Partnership NHS Trust,16/06/22,NURSE - BAND 5 - AGENCY,H&B Comm Hosp East Ward,HCL NURSING,HNSI0001048,9024.04
Department of Health,Leicestershire Partnership NHS Trust,16/06/22,NURSE - BAND 2 - AGENCY,H&B Comm Hosp North Ward,HCL NURSING,HNSI0001048,4270.00
Department of Health,Leicestershire Partnership NHS Trust,16/06/22,NURSE - BAND 5 - AGENCY,H&B Comm Hosp North Ward,HCL NURSING,HNSI0001048,2242.43
Department of Health,Leicestershire Partnership NHS Trust,16/06/22,NURSE - BAND 2 - AGENCY,Lough Swithland Ward,HCL NURSING,HNSI0001048,1286.40
Department of Health,Leicestershire Partnership NHS Trust,16/06/22,NURSE - BAND 5 - AGENCY,Lough Swithland Ward,HCL NURSING,HNSI0001048,4988.52
Department of Health,Leicestershire Partnership NHS Trust,16/06/22,NURSE - BAND 2 - AGENCY,Rutland Ward Nursing,HCL NURSING,HNSI0001048,3498.94
Department of Health,Leicestershire Partnership NHS Trust,16/06/22,NURSE - BAND 5 - AGENCY,Rutland Ward Nursing,HCL NURSING,HNSI0001048,909.73
Department of Health,Leicestershire Partnership NHS Trust,16/06/22,NURSE - BAND 2 - AGENCY,St Lukes Stroke Ward,HCL NURSING,HNSI0001048,932.45
Department of Health,Leicestershire Partnership NHS Trust,16/06/22,NURSE - BAND 5 - AGENCY,St Lukes Stroke Ward,HCL NURSING,HNSI0001048,6064.97
Department of Health,Leicestershire Partnership NHS Trust,16/06/22,NURSE - BAND 2 - AGENCY,St Lukes Ward 3,HCL NURSING,HNSI0001048,3116.56
Department of Health,Leicestershire Partnership NHS Trust,16/06/22,NURSE - BAND 5 - AGENCY,St Lukes Ward 3,HCL NURSING,HNSI0001048,1951.31
Department of Health,Leicestershire Partnership NHS Trust,16/06/22,NURSE - BAND 2 - AGENCY,Wakerley Ward,HCL NURSING,HNSI0001048,6890.42
Department of Health,Leicestershire Partnership NHS Trust,16/06/22,NURSE - BAND 5 - AGENCY,Wakerley Ward,HCL NURSING,HNSI0001048,3834.39
Department of Health,Leicestershire Partnership NHS Trust,16/06/22,Rent,County Hall,LEIC COUNTY COUNCIL,6292070,34488.50
Department of Health,Leicestershire Partnership NHS Trust,16/06/22,Computer Software,FM Transformation,INVIDA LTD,SI-459,54273.60
Department of Health,Leicestershire Partnership NHS Trust,16/06/22,Rates,"Coalville Community Hospital (P138, LPT)",HINCKLEY & BOS BOR COUNCIL,2001095931/22-23CREDIT,-73829.00
Department of Health,Leicestershire Partnership NHS Trust,16/06/22,Rates,"Coalville Community Hospital (P138, LPT)",NW LEICS DISTRICT COUNCIL,2001095931/22-23,105472.00
Department of Health,Leicestershire Partnership NHS Trust,17/06/22,External Consultancy Fees,ChatHealth Surplus,JIMMY ENDICOTT,250422,83903.65
Department of Health,Leicestershire Partnership NHS Trust,17/06/22,Nurse - Band 6 -Agency,AMH - Central Access Point,HCL NURSING,HNSI0001056,2835.61
Department of Health,Leicestershire Partnership NHS Trust,17/06/22,Nurse - Band 6 -Agency,Adult County West Leicestershire CMHT,HCL NURSING,HNSI0001056,2419.12
Department of Health,Leicestershire Partnership NHS Trust,17/06/22,Nurse - Band 6 -Agency,Adult County- East Leicester CMHT,HCL NURSING,HNSI0001056,714.92
Department of Health,Leicestershire Partnership NHS Trust,17/06/22,NURSE - BAND 2 - AGENCY,Agnes Unit,HCL NURSING,HNSI0001056,23448.01
Department of Health,Leicestershire Partnership NHS Trust,17/06/22,NURSE - BAND 5 - AGENCY,Agnes Unit,HCL NURSING,HNSI0001056,14556.87
Department of Health,Leicestershire Partnership NHS Trust,17/06/22,NURSE - BAND 2 - AGENCY,Ashby Ward (Bradgate Unit),HCL NURSING,HNSI0001056,10892.40
Department of Health,Leicestershire Partnership NHS Trust,17/06/22,NURSE - BAND 5 - AGENCY,Ashby Ward (Bradgate Unit),HCL NURSING,HNSI0001056,4658.37
Department of Health,Leicestershire Partnership NHS Trust,17/06/22,NURSE - BAND 2 - AGENCY,Aston Ward (Bradgate Unit),HCL NURSING,HNSI0001056,7499.63
Department of Health,Leicestershire Partnership NHS Trust,17/06/22,NURSE - BAND 5 - AGENCY,Aston Ward (Bradgate Unit),HCL NURSING,HNSI0001056,6743.93
Department of Health,Leicestershire Partnership NHS Trust,17/06/22,NURSE - BAND 2 - AGENCY,Beaumont Ward - Bradgate Unit,HCL NURSING,HNSI0001056,2686.35
Department of Health,Leicestershire Partnership NHS Trust,17/06/22,NURSE - BAND 5 - AGENCY,Beaumont Ward - Bradgate Unit,HCL NURSING,HNSI0001056,9788.67
Department of Health,Leicestershire Partnership NHS Trust,17/06/22,NURSE - BAND 2 - AGENCY,Belvoir Psychiatric Intensive Care Unit,HCL NURSING,HNSI0001056,4106.70
Department of Health,Leicestershire Partnership NHS Trust,17/06/22,NURSE - BAND 5 - AGENCY,Belvoir Psychiatric Intensive Care Unit,HCL NURSING,HNSI0001056,2949.76
Department of Health,Leicestershire Partnership NHS Trust,17/06/22,NURSE - BAND 2 - AGENCY,Bosworth Ward - Bradgate Unit,HCL NURSING,HNSI0001056,2401.22
Department of Health,Leicestershire Partnership NHS Trust,17/06/22,NURSE - BAND 5 - AGENCY,Bosworth Ward - Bradgate Unit,HCL NURSING,HNSI0001056,4243.50
Department of Health,Leicestershire Partnership NHS Trust,17/06/22,NURSE - BAND 2 - AGENCY,Cedar (Willows),HCL NURSING,HNSI0001056,4036.55
Department of Health,Leicestershire Partnership NHS Trust,17/06/22,NURSE - BAND 5 - AGENCY,Cedar (Willows),HCL NURSING,HNSI0001056,1580.55
Department of Health,Leicestershire Partnership NHS Trust,17/06/22,Nurse - Band 6 -Agency,City West CMHT MHSOP,HCL NURSING,HNSI0001056,633.60
Department of Health,Leicestershire Partnership NHS Trust,17/06/22,NURSE - BAND 2 - AGENCY,Coleman Ward,HCL NURSING,HNSI0001056,12486.14
Department of Health,Leicestershire Partnership NHS Trust,17/06/22,NURSE - BAND 5 - AGENCY,Coleman Ward,HCL NURSING,HNSI0001056,5133.79
Department of Health,Leicestershire Partnership NHS Trust,17/06/22,NURSE - BAND 5 - AGENCY,Crisis Resolution,HCL NURSING,HNSI0001056,4349.10
Department of Health,Leicestershire Partnership NHS Trust,17/06/22,Nurse - Band 6 -Agency,Crisis Resolution,HCL NURSING,HNSI0001056,2604.85
Department of Health,Leicestershire Partnership NHS Trust,17/06/22,NURSE - BAND 2 - AGENCY,Griffin Ward (HPC),HCL NURSING,HNSI0001056,4776.96
Department of Health,Leicestershire Partnership NHS Trust,17/06/22,NURSE - BAND 5 - AGENCY,Griffin Ward (HPC),HCL NURSING,HNSI0001056,4577.37
Department of Health,Leicestershire Partnership NHS Trust,17/06/22,NURSE - BAND 2 - AGENCY,Heather Ward,HCL NURSING,HNSI0001056,2496.38
Department of Health,Leicestershire Partnership NHS Trust,17/06/22,NURSE - BAND 5 - AGENCY,Heather Ward,HCL NURSING,HNSI0001056,5111.61
Department of Health,Leicestershire Partnership NHS Trust,17/06/22,NURSE - BAND 2 - AGENCY,Kirby Ward,HCL NURSING,HNSI0001056,7150.73
Department of Health,Leicestershire Partnership NHS Trust,17/06/22,NURSE - BAND 5 - AGENCY,Kirby Ward,HCL NURSING,HNSI0001056,443.95
Department of Health,Leicestershire Partnership NHS Trust,17/06/22,NURSE - BAND 2 - AGENCY,Maple Ward,HCL NURSING,HNSI0001056,4877.27
Department of Health,Leicestershire Partnership NHS Trust,17/06/22,NURSE - BAND 5 - AGENCY,Maple Ward,HCL NURSING,HNSI0001056,5343.50
Department of Health,Leicestershire Partnership NHS Trust,17/06/22,Nurse - Band 6 -Agency,Mental Health Liaison Team,HCL NURSING,HNSI0001056,3202.03
Department of Health,Leicestershire Partnership NHS Trust,17/06/22,NURSE - BAND 2 - AGENCY,Mill Lodge,HCL NURSING,HNSI0001056,2541.65
Department of Health,Leicestershire Partnership NHS Trust,17/06/22,NURSE - BAND 5 - AGENCY,Mill Lodge,HCL NURSING,HNSI0001056,8011.11
Department of Health,Leicestershire Partnership NHS Trust,17/06/22,NURSE - BAND 2 - AGENCY,Phoenix Ward (HPC),HCL NURSING,HNSI0001056,8632.54
Department of Health,Leicestershire Partnership NHS Trust,17/06/22,NURSE - BAND 5 - AGENCY,Phoenix Ward (HPC),HCL NURSING,HNSI0001056,993.02
Department of Health,Leicestershire Partnership NHS Trust,17/06/22,NURSE - BAND 2 - AGENCY,Place Of Safety Assessment Unit,HCL NURSING,HNSI0001056,720.09
Department of Health,Leicestershire Partnership NHS Trust,17/06/22,NURSE - BAND 5 - AGENCY,Place Of Safety Assessment Unit,HCL NURSING,HNSI0001056,6619.69
Department of Health,Leicestershire Partnership NHS Trust,17/06/22,NURSE - BAND 2 - AGENCY,Stewart House,HCL NURSING,HNSI0001056,2010.30
Department of Health,Leicestershire Partnership NHS Trust,17/06/22,NURSE - BAND 5 - AGENCY,Stewart House,HCL NURSING,HNSI0001056,2789.63
Department of Health,Leicestershire Partnership NHS Trust,17/06/22,NURSE - BAND 2 - AGENCY,Sycamore (Willows),HCL NURSING,HNSI0001056,7059.05
Department of Health,Leicestershire Partnership NHS Trust,17/06/22,NURSE - BAND 5 - AGENCY,Sycamore (Willows),HCL NURSING,HNSI0001056,7135.31
Department of Health,Leicestershire Partnership NHS Trust,17/06/22,NURSE - BAND 2 - AGENCY,Thornton Ward - Bradgate Unit,HCL NURSING,HNSI0001056,859.45
Department of Health,Leicestershire Partnership NHS Trust,17/06/22,NURSE - BAND 5 - AGENCY,Thornton Ward - Bradgate Unit,HCL NURSING,HNSI0001056,973.84
Department of Health,Leicestershire Partnership NHS Trust,17/06/22,NURSE - BAND 2 - AGENCY,Watermead Ward (Bradgate Unit),HCL NURSING,HNSI0001056,2605.12
Department of Health,Leicestershire Partnership NHS Trust,17/06/22,NURSE - BAND 5 - AGENCY,Watermead Ward (Bradgate Unit),HCL NURSING,HNSI0001056,15075.58
Department of Health,Leicestershire Partnership NHS Trust,17/06/22,NURSE - BAND 2 - AGENCY,Welford Ward,HCL NURSING,HNSI0001056,2035.72
Department of Health,Leicestershire Partnership NHS Trust,17/06/22,NURSE - BAND 5 - AGENCY,Welford Ward,HCL NURSING,HNSI0001056,3287.77
Department of Health,Leicestershire Partnership NHS Trust,17/06/22,Nurse - Band 6 -Agency,CAMHS HUB / CAP,HCL SOCIAL CARE,HWSI0001220,9393.42
Department of Health,Leicestershire Partnership NHS Trust,17/06/22,Nurse - Band 6 -Agency,CAMHS Waiting List Monies,HCL SOCIAL CARE,HWSI0001220,20767.28
Department of Health,Leicestershire Partnership NHS Trust,17/06/22,Nurse - Band 6 -Agency,Crisis Response and Home Treatment,HCL SOCIAL CARE,HWSI0001220,4052.48
Department of Health,Leicestershire Partnership NHS Trust,17/06/22,NURSE - BAND 2 - AGENCY,CAMHS Inpatient Service,HCL NURSING,HNSI0001058,7233.83
Department of Health,Leicestershire Partnership NHS Trust,17/06/22,NURSE - BAND 5 - AGENCY,CAMHS Inpatient Service,HCL NURSING,HNSI0001058,9407.59
Department of Health,Leicestershire Partnership NHS Trust,17/06/22,Nurse - Band 6 -Agency,CAMHS Waiting List Monies,HCL NURSING,HNSI0001058,5917.86
Department of Health,Leicestershire Partnership NHS Trust,17/06/22,NURSE - BAND 2 - AGENCY,Langley Ward ED Inpatient Service,HCL NURSING,HNSI0001058,3267.88
Department of Health,Leicestershire Partnership NHS Trust,17/06/22,NURSE - BAND 5 - AGENCY,Langley Ward ED Inpatient Service,HCL NURSING,HNSI0001058,6458.25
Department of Health,Leicestershire Partnership NHS Trust,17/06/22,NURSE - BAND 2 - AGENCY,Beechwood Ward,HCL NURSING,HNSI0001057,9709.41
Department of Health,Leicestershire Partnership NHS Trust,17/06/22,NURSE - BAND 5 - AGENCY,Beechwood Ward,HCL NURSING,HNSI0001057,5455.34
Department of Health,Leicestershire Partnership NHS Trust,17/06/22,NURSE - BAND 3 - AGENCY,CHS Phlebotomy Service,HCL NURSING,HNSI0001057,294.84
Department of Health,Leicestershire Partnership NHS Trust,17/06/22,NURSE - BAND 5 - AGENCY,City Planned Care - East,HCL NURSING,HNSI0001057,11033.96
Department of Health,Leicestershire Partnership NHS Trust,17/06/22,NURSE - BAND 5 - AGENCY,City Planned Care - West,HCL NURSING,HNSI0001057,14435.07
Department of Health,Leicestershire Partnership NHS Trust,17/06/22,NURSE - BAND 2 - AGENCY,Clarendon Ward,HCL NURSING,HNSI0001057,3206.32
Department of Health,Leicestershire Partnership NHS Trust,17/06/22,NURSE - BAND 5 - AGENCY,Clarendon Ward,HCL NURSING,HNSI0001057,2448.38
Department of Health,Leicestershire Partnership NHS Trust,17/06/22,NURSE - BAND 2 - AGENCY,Coalville Snibston Ward,HCL NURSING,HNSI0001057,7008.26
Department of Health,Leicestershire Partnership NHS Trust,17/06/22,NURSE - BAND 5 - AGENCY,Coalville Snibston Ward,HCL NURSING,HNSI0001057,2341.45
Department of Health,Leicestershire Partnership NHS Trust,17/06/22,NURSE - BAND 2 - AGENCY,Coalville Ward 2,HCL NURSING,HNSI0001057,5240.37
Department of Health,Leicestershire Partnership NHS Trust,17/06/22,NURSE - BAND 5 - AGENCY,Coalville Ward 2,HCL NURSING,HNSI0001057,2047.12
Department of Health,Leicestershire Partnership NHS Trust,17/06/22,NURSE - BAND 2 - AGENCY,Dalgliesh Ward,HCL NURSING,HNSI0001057,2744.73
Department of Health,Leicestershire Partnership NHS Trust,17/06/22,NURSE - BAND 5 - AGENCY,Dalgliesh Ward,HCL NURSING,HNSI0001057,1657.44
Department of Health,Leicestershire Partnership NHS Trust,17/06/22,NURSE - BAND 5 - AGENCY,"East Planned Care - Oadby,Wigston & Harborough",HCL NURSING,HNSI0001057,1008.21
Department of Health,Leicestershire Partnership NHS Trust,17/06/22,NURSE - BAND 2 - AGENCY,H&B Comm Hosp East Ward,HCL NURSING,HNSI0001057,5299.61
Department of Health,Leicestershire Partnership NHS Trust,17/06/22,NURSE - BAND 5 - AGENCY,H&B Comm Hosp East Ward,HCL NURSING,HNSI0001057,9496.20
Department of Health,Leicestershire Partnership NHS Trust,17/06/22,NURSE - BAND 2 - AGENCY,H&B Comm Hosp North Ward,HCL NURSING,HNSI0001057,4413.09
Department of Health,Leicestershire Partnership NHS Trust,17/06/22,NURSE - BAND 5 - AGENCY,H&B Comm Hosp North Ward,HCL NURSING,HNSI0001057,3818.64
Department of Health,Leicestershire Partnership NHS Trust,17/06/22,NURSE - BAND 2 - AGENCY,Lough Swithland Ward,HCL NURSING,HNSI0001057,1505.06
Department of Health,Leicestershire Partnership NHS Trust,17/06/22,NURSE - BAND 5 - AGENCY,Lough Swithland Ward,HCL NURSING,HNSI0001057,2682.52
Department of Health,Leicestershire Partnership NHS Trust,17/06/22,NURSE - BAND 2 - AGENCY,Rutland Ward Nursing,HCL NURSING,HNSI0001057,4203.36
Department of Health,Leicestershire Partnership NHS Trust,17/06/22,NURSE - BAND 5 - AGENCY,Rutland Ward Nursing,HCL NURSING,HNSI0001057,2450.35
Department of Health,Leicestershire Partnership NHS Trust,17/06/22,NURSE - BAND 2 - AGENCY,St Lukes Stroke Ward,HCL NURSING,HNSI0001057,6276.85
Department of Health,Leicestershire Partnership NHS Trust,17/06/22,NURSE - BAND 5 - AGENCY,St Lukes Stroke Ward,HCL NURSING,HNSI0001057,1857.96
Department of Health,Leicestershire Partnership NHS Trust,17/06/22,NURSE - BAND 2 - AGENCY,St Lukes Ward 3,HCL NURSING,HNSI0001057,3020.03
Department of Health,Leicestershire Partnership NHS Trust,17/06/22,NURSE - BAND 5 - AGENCY,St Lukes Ward 3,HCL NURSING,HNSI0001057,2091.23
Department of Health,Leicestershire Partnership NHS Trust,17/06/22,NURSE - BAND 2 - AGENCY,Wakerley Ward,HCL NURSING,HNSI0001057,13795.23
Department of Health,Leicestershire Partnership NHS Trust,17/06/22,NURSE - BAND 5 - AGENCY,Wakerley Ward,HCL NURSING,HNSI0001057,5801.97
Department of Health,Leicestershire Partnership NHS Trust,20/06/22,Crs_NHS_LT1y -Resus Inventory Supplied.,Balance Sheet Collection,SUPPLY CHAIN CO LTD,1123055148,32452.81
Department of Health,Leicestershire Partnership NHS Trust,20/06/22,Med GP Trainees,Medical Trainees,ST.HELENS & KNOWSLEY NHS TRUST,16814433,75000.00
Department of Health,Leicestershire Partnership NHS Trust,21/06/22,BOUGHT IN GPs,Mill Lodge,THE LIMES MEDICAL CTR,56,21558.72
Department of Health,Leicestershire Partnership NHS Trust,21/06/22,BOUGHT IN GPs,Stewart House,THE LIMES MEDICAL CTR,56,24496.32
Department of Health,Leicestershire Partnership NHS Trust,22/06/22,Healthcare Services / Recharges from Non-NHS Bodies,Adult Eating Disorder Collaborative,NAVIGO H&SC CIC,SAL-INV-7148,31212.04
Department of Health,Leicestershire Partnership NHS Trust,22/06/22,Computer Software,HIS,TRUSTMARQUE SOLUTIONS LTD,2343305,369977.33
Department of Health,Leicestershire Partnership NHS Trust,23/06/22,FP10'S,Adult City Drugs,NHS BUS SERVICES AUTHORITY,1000073540,22017.83
Department of Health,Leicestershire Partnership NHS Trust,23/06/22,FP10'S,Adult County Drugs,NHS BUS SERVICES AUTHORITY,1000073540,19332.40
Department of Health,Leicestershire Partnership NHS Trust,23/06/22,FP10'S,CAMHS Outpatients,NHS BUS SERVICES AUTHORITY,1000073540,6408.23
Department of Health,Leicestershire Partnership NHS Trust,23/06/22,FP10'S,Community Paediatrics,NHS BUS SERVICES AUTHORITY,1000073540,12221.35
Department of Health,Leicestershire Partnership NHS Trust,23/06/22,FP10'S,Dementia Related Drugs and Investigations,NHS BUS SERVICES AUTHORITY,1000073540,5633.48
Department of Health,Leicestershire Partnership NHS Trust,23/06/22,FP10'S,Eating Disorders Outpatient Service,NHS BUS SERVICES AUTHORITY,1000073540,1008.09
Department of Health,Leicestershire Partnership NHS Trust,23/06/22,FP10'S,Forensic Services - Community,NHS BUS SERVICES AUTHORITY,1000073540,21.65
Department of Health,Leicestershire Partnership NHS Trust,23/06/22,FP10'S,LOROS Pharmacy,NHS BUS SERVICES AUTHORITY,1000073540,559.67
Department of Health,Leicestershire Partnership NHS Trust,23/06/22,FP10'S,Lough Swithland Ward,NHS BUS SERVICES AUTHORITY,1000073540,26.78
Department of Health,Leicestershire Partnership NHS Trust,23/06/22,FP10'S,MHSOP Inpatient Therapy - Bennion,NHS BUS SERVICES AUTHORITY,1000073540,1.10
Department of Health,Leicestershire Partnership NHS Trust,23/06/22,FP10'S,Mental Health Liaison Team,NHS BUS SERVICES AUTHORITY,1000073540,13.68
Department of Health,Leicestershire Partnership NHS Trust,23/06/22,FP10'S,PIER Team - Early Intervention Services,NHS BUS SERVICES AUTHORITY,1000073540,10777.34
Department of Health,Leicestershire Partnership NHS Trust,23/06/22,FP10'S,Snr Med Staff (Inc Med Reps),NHS BUS SERVICES AUTHORITY,1000073540,6375.01
Department of Health,Leicestershire Partnership NHS Trust,23/06/22,Contract : Premises Security,Estates & Facilities Central,UHL NHS TRUST (RWE),L0261060,2295.52
Department of Health,Leicestershire Partnership NHS Trust,23/06/22,Electricity,"Leicester Frith - Utilities (P38, LPT)",UHL NHS TRUST (RWE),L0261060,4218.60
Department of Health,Leicestershire Partnership NHS Trust,23/06/22,Gas,"Leicester Frith - Utilities (P38, LPT)",UHL NHS TRUST (RWE),L0261060,37877.23
Department of Health,Leicestershire Partnership NHS Trust,23/06/22,Services / Recharges from NHS Trusts,UHL Expenditure Contract,UHL NHS TRUST (RWE),L0261060,5552.23
Department of Health,Leicestershire Partnership NHS Trust,27/06/22,Healthcare Services / Recharges from Non-NHS Bodies,Adult Eating Disorder Collaborative,ELLERN MEDE MOORGATE,OTM0273,37200.00
Department of Health,Leicestershire Partnership NHS Trust,27/06/22,Healthcare Services / Recharges from Non-NHS Bodies,Adult Eating Disorder Collaborative,ELLERN MEDE MOORGATE,OTM0244,36000.00
Department of Health,Leicestershire Partnership NHS Trust,27/06/22,Crs_NHS_LT1y -Resus Inventory Supplied.,Balance Sheet Collection,SUPPLY CHAIN CO LTD,1123060986,35537.77
Department of Health,Leicestershire Partnership NHS Trust,28/06/22,Landline Telephone Rental / Calls,"Beaumont Leys Health Centre (P94, LPT)",VIRGIN MEDIA BUSINESS,853083001/004/0622,360.34
Department of Health,Leicestershire Partnership NHS Trust,28/06/22,Landline Telephone Rental / Calls,"Bennion Centre (including Forest Grange Day Unit) (P8, LPT)",VIRGIN MEDIA BUSINESS,853083001/004/0622,7.74
Department of Health,Leicestershire Partnership NHS Trust,28/06/22,Landline Telephone Rental / Calls,"Bradgate Unit (including Glenvale day Unit) (P7, LPT)",VIRGIN MEDIA BUSINESS,853083001/004/0622,8199.77
Department of Health,Leicestershire Partnership NHS Trust,28/06/22,Landline Telephone Rental / Calls,Braunstone Health and Social Care Centre (Part) (PROPCO),VIRGIN MEDIA BUSINESS,853083001/004/0622,1170.50
Department of Health,Leicestershire Partnership NHS Trust,28/06/22,Landline Telephone Rental / Calls,Bridge Park Plaza - First Floor (LPT),VIRGIN MEDIA BUSINESS,853083001/004/0622,3807.37
Department of Health,Leicestershire Partnership NHS Trust,28/06/22,Landline Telephone Rental / Calls,"Coalville Community Hospital (P138, LPT)",VIRGIN MEDIA BUSINESS,853083001/004/0622,1367.56
Department of Health,Leicestershire Partnership NHS Trust,28/06/22,Landline Telephone Rental / Calls,"Coalville Health Centre (P121, LPT)",VIRGIN MEDIA BUSINESS,853083001/004/0622,149.45
Department of Health,Leicestershire Partnership NHS Trust,28/06/22,Landline Telephone Rental / Calls,County Hall,VIRGIN MEDIA BUSINESS,853083001/004/0622,2168.14
Department of Health,Leicestershire Partnership NHS Trust,28/06/22,Landline Telephone Rental / Calls,Estates & Facilities Central,VIRGIN MEDIA BUSINESS,853083001/004/0622,6.31
Department of Health,Leicestershire Partnership NHS Trust,28/06/22,Landline Telephone Rental / Calls,"Evington Centre (P6, LPT)",VIRGIN MEDIA BUSINESS,853083001/004/0622,1652.48
Department of Health,Leicestershire Partnership NHS Trust,28/06/22,Landline Telephone Rental / Calls,HIS,VIRGIN MEDIA BUSINESS,853083001/004/0622,2794.68
Department of Health,Leicestershire Partnership NHS Trust,28/06/22,Landline Telephone Rental / Calls,"Hawthorne Centre - Coalville (P14, LPT)",VIRGIN MEDIA BUSINESS,853083001/004/0622,513.12
Department of Health,Leicestershire Partnership NHS Trust,28/06/22,Landline Telephone Rental / Calls,"Hinckley and Bosworth Community Hospital (Sunnyside) (P133, LPT)",VIRGIN MEDIA BUSINESS,853083001/004/0622,936.98
Department of Health,Leicestershire Partnership NHS Trust,28/06/22,Landline Telephone Rental / Calls,Hood Park Leisure Centre Clinic,VIRGIN MEDIA BUSINESS,853083001/004/0622,23.22
Department of Health,Leicestershire Partnership NHS Trust,28/06/22,Landline Telephone Rental / Calls,"Hynca Lodge (P33, LPT)",VIRGIN MEDIA BUSINESS,853083001/004/0622,400.78
Department of Health,Leicestershire Partnership NHS Trust,28/06/22,Landline Telephone Rental / Calls,"Legion House, Ashby",VIRGIN MEDIA BUSINESS,853083001/004/0622,46.58
Department of Health,Leicestershire Partnership NHS Trust,28/06/22,Landline Telephone Rental / Calls,"Loughborough Hospital (P136, LPT)",VIRGIN MEDIA BUSINESS,853083001/004/0622,4457.89
Department of Health,Leicestershire Partnership NHS Trust,28/06/22,Landline Telephone Rental / Calls,Mawson House (LPT),VIRGIN MEDIA BUSINESS,853083001/004/0622,443.74
Department of Health,Leicestershire Partnership NHS Trust,28/06/22,Landline Telephone Rental / Calls,Merlyn Vaz Centre (CHP),VIRGIN MEDIA BUSINESS,853083001/004/0622,1483.81
Department of Health,Leicestershire Partnership NHS Trust,28/06/22,Landline Telephone Rental / Calls,"Mett Centre (P49, LPT)",VIRGIN MEDIA BUSINESS,853083001/004/0622,85.28
Department of Health,Leicestershire Partnership NHS Trust,28/06/22,Landline Telephone Rental / Calls,NSPCC Training Cente,VIRGIN MEDIA BUSINESS,853083001/004/0622,159.96
Department of Health,Leicestershire Partnership NHS Trust,28/06/22,Landline Telephone Rental / Calls,New Parks Health Centre (PROPCO),VIRGIN MEDIA BUSINESS,853083001/004/0622,1534.39
Department of Health,Leicestershire Partnership NHS Trust,28/06/22,Landline Telephone Rental / Calls,"OSL House (P54, LPT)",VIRGIN MEDIA BUSINESS,853083001/004/0622,952.68
Department of Health,Leicestershire Partnership NHS Trust,28/06/22,Landline Telephone Rental / Calls,"Orchard Resource Centre (P15, LPT)",VIRGIN MEDIA BUSINESS,853083001/004/0622,590.96
Department of Health,Leicestershire Partnership NHS Trust,28/06/22,Landline Telephone Rental / Calls,Pasley Road Health Centre (PROPCO),VIRGIN MEDIA BUSINESS,853083001/004/0622,127.81
Department of Health,Leicestershire Partnership NHS Trust,28/06/22,Landline Telephone Rental / Calls,"Prince Philip House (P96, LPT)",VIRGIN MEDIA BUSINESS,853083001/004/0622,1590.78
Department of Health,Leicestershire Partnership NHS Trust,28/06/22,Landline Telephone Rental / Calls,Rushey Mead Health Centre (PROPCO),VIRGIN MEDIA BUSINESS,853083001/004/0622,70.93
Department of Health,Leicestershire Partnership NHS Trust,28/06/22,Landline Telephone Rental / Calls,"Shepshed Health Centre (P123, LPT)",VIRGIN MEDIA BUSINESS,853083001/004/0622,8.18
Department of Health,Leicestershire Partnership NHS Trust,28/06/22,Landline Telephone Rental / Calls,"Springfield Road Health Centre (P92, LPT)",VIRGIN MEDIA BUSINESS,853083001/004/0622,325.57
Department of Health,Leicestershire Partnership NHS Trust,28/06/22,Landline Telephone Rental / Calls,"St Peters Health Center (Part 1st and 2nd floors) (P66, LPT)",VIRGIN MEDIA BUSINESS,853083001/004/0622,1780.61
Department of Health,Leicestershire Partnership NHS Trust,28/06/22,Landline Telephone Rental / Calls,"Swithland House - London Road 352 (P44, LPT)",VIRGIN MEDIA BUSINESS,853083001/004/0622,311.59
Department of Health,Leicestershire Partnership NHS Trust,28/06/22,Landline Telephone Rental / Calls,"The Cedars (P19, LPT)",VIRGIN MEDIA BUSINESS,853083001/004/0622,722.57
Department of Health,Leicestershire Partnership NHS Trust,28/06/22,Landline Telephone Rental / Calls,"The Willows - Cordelia Close (P22, LPT)",VIRGIN MEDIA BUSINESS,853083001/004/0622,502.98
Department of Health,Leicestershire Partnership NHS Trust,28/06/22,Landline Telephone Rental / Calls,"Valentine Centre (P3, LPT)",VIRGIN MEDIA BUSINESS,853083001/004/0622,1722.89
Department of Health,Leicestershire Partnership NHS Trust,28/06/22,Landline Telephone Rental / Calls,Warren Park Way 25 (PROPCO),VIRGIN MEDIA BUSINESS,853083001/004/0622,680.39
Department of Health,Leicestershire Partnership NHS Trust,28/06/22,Landline Telephone Rental / Calls,"Westcotes Group -Westcotes House (P78, LPT)",VIRGIN MEDIA BUSINESS,853083001/004/0622,1404.19
Department of Health,Leicestershire Partnership NHS Trust,28/06/22,Landline Telephone Rental / Calls,"Winstanley Drive Health Centre (P8, LPT)",VIRGIN MEDIA BUSINESS,853083001/004/0622,442.74
Department of Health,Leicestershire Partnership NHS Trust,28/06/22,NURSE - BAND 2 - AGENCY,CAMHS Inpatient Service,HCL NURSING,HNSI0001067,2822.58
Department of Health,Leicestershire Partnership NHS Trust,28/06/22,NURSE - BAND 5 - AGENCY,CAMHS Inpatient Service,HCL NURSING,HNSI0001067,7630.44
Department of Health,Leicestershire Partnership NHS Trust,28/06/22,Nurse - Band 6 -Agency,CAMHS Waiting List Monies,HCL NURSING,HNSI0001067,7204.31
Department of Health,Leicestershire Partnership NHS Trust,28/06/22,NURSE - BAND 2 - AGENCY,Langley Ward ED Inpatient Service,HCL NURSING,HNSI0001067,4946.99
Department of Health,Leicestershire Partnership NHS Trust,28/06/22,NURSE - BAND 5 - AGENCY,Langley Ward ED Inpatient Service,HCL NURSING,HNSI0001067,5877.67
Department of Health,Leicestershire Partnership NHS Trust,28/06/22,Nurse - Band 6 -Agency,AMH - Central Access Point,HCL NURSING,HNSI0001065,2527.18
Department of Health,Leicestershire Partnership NHS Trust,28/06/22,Nurse - Band 6 -Agency,Adult County- East Leicester CMHT,HCL NURSING,HNSI0001065,2322.24
Department of Health,Leicestershire Partnership NHS Trust,28/06/22,NURSE - BAND 2 - AGENCY,Agnes Unit,HCL NURSING,HNSI0001065,24539.00
Department of Health,Leicestershire Partnership NHS Trust,28/06/22,NURSE - BAND 5 - AGENCY,Agnes Unit,HCL NURSING,HNSI0001065,19818.67
Department of Health,Leicestershire Partnership NHS Trust,28/06/22,NURSE - BAND 2 - AGENCY,Ashby Ward (Bradgate Unit),HCL NURSING,HNSI0001065,11448.10
Department of Health,Leicestershire Partnership NHS Trust,28/06/22,NURSE - BAND 5 - AGENCY,Ashby Ward (Bradgate Unit),HCL NURSING,HNSI0001065,11521.71
Department of Health,Leicestershire Partnership NHS Trust,28/06/22,NURSE - BAND 2 - AGENCY,Aston Ward (Bradgate Unit),HCL NURSING,HNSI0001065,1085.59
Department of Health,Leicestershire Partnership NHS Trust,28/06/22,NURSE - BAND 5 - AGENCY,Aston Ward (Bradgate Unit),HCL NURSING,HNSI0001065,2678.18
Department of Health,Leicestershire Partnership NHS Trust,28/06/22,NURSE - BAND 2 - AGENCY,Beaumont Ward - Bradgate Unit,HCL NURSING,HNSI0001065,4690.09
Department of Health,Leicestershire Partnership NHS Trust,28/06/22,NURSE - BAND 5 - AGENCY,Beaumont Ward - Bradgate Unit,HCL NURSING,HNSI0001065,8467.09
Department of Health,Leicestershire Partnership NHS Trust,28/06/22,NURSE - BAND 2 - AGENCY,Belvoir Psychiatric Intensive Care Unit,HCL NURSING,HNSI0001065,4889.94
Department of Health,Leicestershire Partnership NHS Trust,28/06/22,NURSE - BAND 5 - AGENCY,Belvoir Psychiatric Intensive Care Unit,HCL NURSING,HNSI0001065,3873.13
Department of Health,Leicestershire Partnership NHS Trust,28/06/22,NURSE - BAND 2 - AGENCY,Bosworth Ward - Bradgate Unit,HCL NURSING,HNSI0001065,1486.10
Department of Health,Leicestershire Partnership NHS Trust,28/06/22,NURSE - BAND 5 - AGENCY,Bosworth Ward - Bradgate Unit,HCL NURSING,HNSI0001065,6928.02
Department of Health,Leicestershire Partnership NHS Trust,28/06/22,NURSE - BAND 2 - AGENCY,Cedar (Willows),HCL NURSING,HNSI0001065,1283.03
Department of Health,Leicestershire Partnership NHS Trust,28/06/22,NURSE - BAND 5 - AGENCY,Cedar (Willows),HCL NURSING,HNSI0001065,2352.99
Department of Health,Leicestershire Partnership NHS Trust,28/06/22,Nurse - Band 6 -Agency,City West CMHT MHSOP,HCL NURSING,HNSI0001065,2112.00
Department of Health,Leicestershire Partnership NHS Trust,28/06/22,NURSE - BAND 2 - AGENCY,Coleman Ward,HCL NURSING,HNSI0001065,11158.11
Department of Health,Leicestershire Partnership NHS Trust,28/06/22,NURSE - BAND 5 - AGENCY,Coleman Ward,HCL NURSING,HNSI0001065,3776.21
Department of Health,Leicestershire Partnership NHS Trust,28/06/22,NURSE - BAND 5 - AGENCY,Crisis Resolution,HCL NURSING,HNSI0001065,3562.14
Department of Health,Leicestershire Partnership NHS Trust,28/06/22,Nurse - Band 6 -Agency,Crisis Resolution,HCL NURSING,HNSI0001065,674.71
Department of Health,Leicestershire Partnership NHS Trust,28/06/22,NURSE - BAND 2 - AGENCY,Griffin Ward (HPC),HCL NURSING,HNSI0001065,4335.89
Department of Health,Leicestershire Partnership NHS Trust,28/06/22,NURSE - BAND 5 - AGENCY,Griffin Ward (HPC),HCL NURSING,HNSI0001065,2757.75
Department of Health,Leicestershire Partnership NHS Trust,28/06/22,NURSE - BAND 2 - AGENCY,Heather Ward,HCL NURSING,HNSI0001065,3846.42
Department of Health,Leicestershire Partnership NHS Trust,28/06/22,NURSE - BAND 5 - AGENCY,Heather Ward,HCL NURSING,HNSI0001065,6579.05
Department of Health,Leicestershire Partnership NHS Trust,28/06/22,NURSE - BAND 2 - AGENCY,Kirby Ward,HCL NURSING,HNSI0001065,11068.69
Department of Health,Leicestershire Partnership NHS Trust,28/06/22,NURSE - BAND 5 - AGENCY,Kirby Ward,HCL NURSING,HNSI0001065,3626.35
Department of Health,Leicestershire Partnership NHS Trust,28/06/22,NURSE - BAND 2 - AGENCY,Maple Ward,HCL NURSING,HNSI0001065,4378.87
Department of Health,Leicestershire Partnership NHS Trust,28/06/22,NURSE - BAND 5 - AGENCY,Maple Ward,HCL NURSING,HNSI0001065,1504.53
Department of Health,Leicestershire Partnership NHS Trust,28/06/22,Nurse - Band 6 -Agency,Mental Health Liaison Team,HCL NURSING,HNSI0001065,1790.10
Department of Health,Leicestershire Partnership NHS Trust,28/06/22,NURSE - BAND 2 - AGENCY,Mill Lodge,HCL NURSING,HNSI0001065,3632.75
Department of Health,Leicestershire Partnership NHS Trust,28/06/22,NURSE - BAND 5 - AGENCY,Mill Lodge,HCL NURSING,HNSI0001065,12700.10
Department of Health,Leicestershire Partnership NHS Trust,28/06/22,NURSE - BAND 2 - AGENCY,Phoenix Ward (HPC),HCL NURSING,HNSI0001065,7360.41
Department of Health,Leicestershire Partnership NHS Trust,28/06/22,NURSE - BAND 5 - AGENCY,Phoenix Ward (HPC),HCL NURSING,HNSI0001065,2507.39
Department of Health,Leicestershire Partnership NHS Trust,28/06/22,NURSE - BAND 5 - AGENCY,Place Of Safety Assessment Unit,HCL NURSING,HNSI0001065,5051.49
Department of Health,Leicestershire Partnership NHS Trust,28/06/22,NURSE - BAND 2 - AGENCY,Stewart House,HCL NURSING,HNSI0001065,1482.29
Department of Health,Leicestershire Partnership NHS Trust,28/06/22,NURSE - BAND 5 - AGENCY,Stewart House,HCL NURSING,HNSI0001065,2468.17
Department of Health,Leicestershire Partnership NHS Trust,28/06/22,NURSE - BAND 2 - AGENCY,Sycamore (Willows),HCL NURSING,HNSI0001065,4466.26
Department of Health,Leicestershire Partnership NHS Trust,28/06/22,NURSE - BAND 5 - AGENCY,Sycamore (Willows),HCL NURSING,HNSI0001065,6562.61
Department of Health,Leicestershire Partnership NHS Trust,28/06/22,NURSE - BAND 2 - AGENCY,Thornton Ward - Bradgate Unit,HCL NURSING,HNSI0001065,559.20
Department of Health,Leicestershire Partnership NHS Trust,28/06/22,NURSE - BAND 5 - AGENCY,Thornton Ward - Bradgate Unit,HCL NURSING,HNSI0001065,577.59
Department of Health,Leicestershire Partnership NHS Trust,28/06/22,NURSE - BAND 2 - AGENCY,Watermead Ward (Bradgate Unit),HCL NURSING,HNSI0001065,4058.68
Department of Health,Leicestershire Partnership NHS Trust,28/06/22,NURSE - BAND 5 - AGENCY,Watermead Ward (Bradgate Unit),HCL NURSING,HNSI0001065,11149.00
Department of Health,Leicestershire Partnership NHS Trust,28/06/22,NURSE - BAND 2 - AGENCY,Welford Ward,HCL NURSING,HNSI0001065,1191.30
Department of Health,Leicestershire Partnership NHS Trust,28/06/22,NURSE - BAND 5 - AGENCY,Welford Ward,HCL NURSING,HNSI0001065,1063.43
Department of Health,Leicestershire Partnership NHS Trust,28/06/22,Nurse - Band 6 -Agency,CAMHS HUB / CAP,HCL SOCIAL CARE,HWSI0001232,4501.68
Department of Health,Leicestershire Partnership NHS Trust,28/06/22,Nurse - Band 6 -Agency,CAMHS Waiting List Monies,HCL SOCIAL CARE,HWSI0001232,20970.40
Department of Health,Leicestershire Partnership NHS Trust,28/06/22,Nurse - Band 6 -Agency,Crisis Response and Home Treatment,HCL SOCIAL CARE,HWSI0001232,1977.66
